Cogmind - Beta 13 @@@ ROGUE MODE // 2024.06.05 @ 19:42:00 Player: Waste Result: Destroyed self with Grenade Launcher Performance ------------- Evolutions (0) 0 Regions Visited (2) 400 Robots Destroyed (24) 120 Value Destroyed (547) 547 Prototype IDs (4) 80 Alien Tech Used (0) 0 Bonus (0) 0 TOTAL SCORE: 1147 Bonus ------- None Cogmind --------- Core Integrity 0/250 Matter 191/300 Energy 100/100 System Corruption 10% Temperature Warm (111) Movement Walking (680) Ox8 Location -10/Mines Parts ------- > --- POWER (1) -------- (None) > --- PROPULSION (2) --- Aluminum Leg > --- UTILITY (2) ------ Huge Storage Unit > --- WEAPON (2) ------- Grenade Launcher > --- INVENTORY (25) --- Ion Engine Light Treads Light Treads Aluminum Leg Aluminum Leg Wheel Compact Wheel Heat Sink Medium Storage Unit Large Storage Unit High-capacity Storage Unit EM Pulse Gun Assault Rifle Light Assault Rifle Grenade Launcher Peak State ------------ > --- POWER ------------ Ion Engine > --- PROPULSION ------- Aluminum Leg Aluminum Leg > --- UTILITY ---------- Heat Sink Medium Storage Unit > --- WEAPON ----------- Small Laser Light Assault Rifle > --- INVENTORY -------- Ion Engine Light Treads Light Treads Aluminum Leg Aluminum Leg Wheel Compact Wheel Small Storage Unit EM Pulse Gun Assault Rifle [Rating: 8] Favorites ----------- Power Ion Engine Engine Ion Engine Propulsion Aluminum Leg Leg Aluminum Leg Utility Huge Storage Unit Device Heat Sink Storage Huge Storage Unit Protection Light Armor Plating Weapon Small Laser Energy Gun Small Laser Ballistic Gun Assault Rifle Launcher Grenade Launcher Build | -11 -10 -10 ------- Run | Yrd Mat Min Slots Evolved . | . . . Power . | . . . Propulsion . | . . . Utility . | . . . Weapon . | . . . Parts Attached 19 | 1 17 1 Power 3 | . 3 . Engine 3 | . 3 . Core . | . . . Reactor . | . . . Propulsion 6 | . 6 . Treads . | . . . Leg 6 | . 6 . Wheel . | . . . Hover . | . . . Flight . | . . . Utility 5 | . 5 . Device 1 | . 1 . Storage 3 | . 3 . Processor . | . . . Hackware . | . . . Protection 1 | . 1 . Artifact . | . . . Weapon 5 | 1 3 1 Energy Gun 2 | 1 1 . Energy Cannon . | . . . Ballistic Gun 2 | . 2 . Ballistic Cannon . | . . . Launcher 1 | . . 1 Special Weapon . | . . . Impact Weapon . | . . . Slashing Weapon . | . . . Piercing Weapon . | . . . Special Melee Weapon . | . . . Unidentified Prototypes . | . . . Parts Lost 7 | . 3 4 Power 1 | . . 1 Propulsion 3 | . 2 1 Utility 1 | . . 1 Weapon 2 | . 1 1 Highest Loss Streak 4 | . 3 4 To Critical Strikes . | . . . Average Slot Usage (%) 98 | . 98 80 Engine 13 | . 14 9 Leg 27 | . 27 23 Device 5 | . 5 . Storage 14 | . 14 14 Protection 7 | . 7 9 Energy Gun 13 | . 14 9 Ballistic Gun 13 | . 14 . Naked Turns . | . . . Heaviest Build 91 | 12 91 . Greatest Support 20 | 20 20 . Greatest Overweight (x) 4 | . 4 . Average Overweight (x) 2 | . 2 . Largest Inventory Capacity 25 | 8 25 25 Average Capacity 22 | 8 22 25 Most Carried 15 | 6 15 15 Average Carried 11 | 6 11 15 Final Capacity 25 | 8 25 25 Final Carried 15 | 6 15 15 Class Distribution -------------------- 89% | Scavenger-Mutant 10% | Mutant Dominant Class ---------------- Scavenger-Mutant | -10/Materials Mutant | -10/Mines Resources | -11 -10 -10 ----------- Run | Yrd Mat Min Matter Collected 563 | 170 393 . Remotely . | . . . Salvage Created 932 | . 882 50 Parts 55 | . 55 . Haulers Intercepted 2 | . 2 . Recyclers Shooed 1 | . 1 . Parts Field Recycled . | . . . Retrieved Matter . | . . . Parts Self-Destructed . | . . . Prevented . | . . . Kills | -11 -10 -10 ------- Run | Yrd Mat Min Combat Hostiles Destroyed 35 | . 15 20 Guns 15 | . 15 . AOE 20 | . . 20 Classes Destroyed 8 | . 7 1 Worker 2 | . 2 . Hauler 2 | . 2 . Recycler 1 | . 1 . Mechanic 1 | . 1 . Watcher 3 | . 3 . Swarmer 3 | . 3 . Grunt 12 | . 12 . Assembled 20 | . . 20 Best Kill Streak 20 | . 4 20 Combat Bots Only 20 | . 4 20 Max Kills in Single Turn 4 | . 2 4 Gunslinging . | . . . Exploded 4 | . . 4 Melee . | . . . Uniques/NPCs Destroyed . | . . . Combat | -11 -10 -10 -------- Run | Yrd Mat Min Hostile Shots Fired 120 | . 93 27 Missed 24 | . 20 4 Damage Taken 1184 | . 778 406 Core 259 | . 205 54 Absorbed by Shields . | . . . Core Remaining (%) 100 | 100 . . Volleys Fired 100 | . 89 11 Largest 2 | . 2 1 Hottest 60 | . 60 30 Shots Fired 186 | . 175 11 Gun 175 | . 175 . Cannon . | . . . Launcher 11 | . . 11 Special . | . . . Kinetic 89 | . 89 . Thermal 86 | . 86 . Explosive 11 | . . 11 Electromagnetic . | . . . Robot Hit Streak 8 | . 8 3 Robot Miss Streak 4 | . 4 1 Penetration Max . | . . . Secondary Targets 1 | . 1 . Max Gunslinging Chain 1 | . 1 . Shots Hit Robots 118 | . 111 7 Core Hits 95 | . 49 46 Critical Kills . | . . . Critical Parts Destroyed . | . . . Critical Strikes . | . . . Melee Attacks . | . . . Impact . | . . . Slashing . | . . . Piercing . | . . . Sneak Attacks . | . . . Combat Hostiles . | . . . Follow-up Attacks . | . . . Damage Inflicted 2370 | . 1261 1109 Guns 1233 | . 1233 . Cannons . | . . . Explosions 1109 | . . 1109 Melee . | . . . Ramming 28 | . 28 . Kinetic 630 | . 630 . Thermal 603 | . 603 . Explosive 1109 | . . 1109 Electromagnetic . | . . . Impact . | . . . Slashing . | . . . Piercing . | . . . Highest Corruption 10 | . . 10 Average Corruption 7 | . . 7 Corruption Purged . | . . . Corruption Blocked . | . . . Effects 1 | . . 1 Heat Flow Errors 1 | . . 1 Overload Shots . | . . . Overflow Damage 72 | . . 72 Projectiles . | . . . Explosions 72 | . . 72 Melee . | . . . Knockbacks 1 | . 1 . Impact 1 | . 1 . Kinetic . | . . . Secondary . | . . . Self-Inflicted Damage 98 | . . 98 Shots 4 | . . 4 Rammed . | . . . Targets Rammed 7 | . 7 . Kicked 7 | . 7 . Crushed . | . . . Highest Temperature 150 | . 150 145 Average Temperature 33 | . 31 63 Received Heat Transfer 408 | . 348 60 Siege Activations . | . . . Robots Corrupted . | . . . Combat Hostiles . | . . . Parts Fried . | . . . Impact Corruptions . | . . . Robots Melted . | . . . Combat Hostiles . | . . . Parts Melted 1 | . 1 . Heat Transferred 1325 | . 1325 . Parts Sabotaged . | . . . Parts Stolen . | . . . Parts Stripped . | . . . Power Chain Reactions . | . . . Alert | -11 -10 -10 ------- Run | Yrd Mat Min Peak Influence 277 | . 277 37 Initial 14 | . . 14 Average 67 | . 67 25 Maximum Alert Level 1 | . 1 . Low Security (%) 93 | 100 93 100 Level 1 6 | . 6 . Level 2 . | . . . Level 3 . | . . . Level 4 . | . . . Level 5 . | . . . High Security . | . . . Max Security . | . . . Squads Dispatched 4 | . 4 . Investigation 2 | . 2 . Extermination . | . . . Reinforcement 2 | . 2 . Assault . | . . . Garrison . | . . . Intercept . | . . . Searches Triggered . | . . . Construction Impeded . | . . . Haulers Reinforced . | . . . Active Scanning Responses . | . . . Cargo Convoy Interrupts . | . . . Stealth | -11 -10 -10 --------- Run | Yrd Mat Min Distress Signals . | . . . Communications Jammed . | . . . Distress Signals . | . . . Times Spotted 48 | . 28 20 Peak Tracking Total 20 | . 5 20 Tactical Retreats 1 | . 1 . Traps | -11 -10 -10 ------- Run | Yrd Mat Min Traps Triggered 2 | . 2 . Indirectly . | . . . Trap Hack Attempts . | . . . Triggered . | . . . Disarmed . | . . . Reprogrammed . | . . . Reused . | . . . Traps Extracted . | . . . Installed . | . . . Triggered . | . . . Machines | -11 -10 -10 ---------- Run | Yrd Mat Min Machines Disabled 1 | . 1 . Max in Single Turn 1 | . 1 . Machines Repaired . | . . . Machines Dismantled . | . . . Machines Sabotaged . | . . . Overloaded Fab Kills . | . . . Hacking | -11 -10 -10 --------- Run | Yrd Mat Min Machines Accessed 5 | . 5 . Terminals 5 | . 5 . Fabricators . | . . . Repair Stations . | . . . Recycling Units . | . . . Scanalyzers . | . . . Garrison Access . | . . . Total Hacks 16 | . 16 . Successful 8 | . 8 . Failed 8 | . 8 . Catastrophic 1 | . 1 . Database Lockouts . | . . . Manual 8 | . 8 . Terminals 16 | . 16 . Fabricators . | . . . Repair Stations . | . . . Recycling Units . | . . . Scanalyzers . | . . . Garrison Access . | . . . Terminal Hacks 6 | . 6 . Robot Analysis 2 | . 2 . Prototype ID Bank 2 | . 2 . Locate Traps 1 | . 1 . Hauler Manifests 1 | . 1 . Fabricator Hacks . | . . . Repair Station Hacks . | . . . Recycling Unit Hacks . | . . . Scanalyzer . | . . . Garrison Access Hacks . | . . . Unauthorized Hacks 2 | . 2 . Terminals 2 | . 2 . Botnet 1 | . 1 . Disrupt 1 | . 1 . Fabricators . | . . . Repair Stations . | . . . Recycling Units . | . . . Scanalyzers . | . . . Garrison Access . | . . . Data Cores Recovered . | . . . Used . | . . . Hacking Detections 4 | . 4 . Full Trace Events . | . . . Feedback Events . | . . . Feedback Blocked . | . . . Robot Schematics Acquired . | . . . Robots Built . | . . . Authchips . | . . . Time . | . . . Total Robot Build Rating . | . . . Part Schematics Acquired . | . . . Parts Built . | . . . Authchips . | . . . Time . | . . . Total Part Build Rating . | . . . Parts Repaired . | . . . Time . | . . . Parts Recycled . | . . . Recycled Matter . | . . . Retrieved Matter . | . . . Retrieved Components . | . . . Parts Scanalyzed . | . . . Part Schematics Acquired . | . . . Parts Damaged . | . . . Bothacking | -11 -10 -10 ------------ Run | Yrd Mat Min Used RIF Installer . | . . . Robots Hacked . | . . . Non-combat . | . . . Combat . | . . . Robot Hacks Applied . | . . . Relay Couplers Released . | . . . Fabnet Peak Effective % . | . . . Robots Rewired . | . . . Allies Hacked . | . . . Hacks Repelled . | . . . Allies | -11 -10 -10 -------- Run | Yrd Mat Min Total Allies . | . . . Largest Group . | . . . Highest-Rated Group . | . . . Highest-Rated Ally . | . . . Total Orders . | . . . Ally Attacks . | . . . Total Damage . | . . . Kills . | . . . Allies Corrupted . | . . . Allies Melted . | . . . Intel | -11 -10 -10 ------- Run | Yrd Mat Min Robot Analysis Total 2 | . 2 . Derelict Logs Recovered . | . . . Drone Launches . | . . . Drone Recoveries . | . . . Exploration | -11 -10 -10 ------------- Run | Yrd Mat Min Turns Passed 2290 | 2 2264 24 Spaces Moved 622 | 1 621 . Core . | . . . Treads . | . . . Legs 622 | 1 621 . Wheels . | . . . Hover . | . . . Flight . | . . . Fastest Speed 120 | 120 120 . Average Speed 309 | 120 309 . Slowest Speed 400 | 120 400 . Overloaded Moves . | . . . Propulsion Burnouts . | . . . Robots Hopped . | . . . Cave-ins Triggered . | . . . Exploration Rate (%) 34 | 2 97 5 Regions Visited 2 Branch Regions 1 Pre-discovered Areas 1 | . . 1 Known Exits Taken . | . . . Unknown Exits Taken 2 | 1 1 . Scrap Searched . | . . . Spaces Dug . | . . . Terrain Destroyed 58 | . . 58 Melee . | . . . Projectile . | . . . AOE 58 | . . 58 Terrain Rammed . | . . . Walls Destroyed . | . . . Machines Disabled . | . . . Actions | -11 -10 -10 --------- Run | Yrd Mat Min Total 798 | 1 783 14 Wait 39 | . 37 2 Move 620 | . 620 . Hop . | . . . Pick Up 5 | . 5 . Fast Attach 3 | . 3 . Attach 3 | . 3 . Detach 2 | . 2 . Swap 13 | 1 11 1 Drop 6 | . 6 . Fire 100 | . 89 11 Melee . | . . . Ram . | . . . Kick 7 | . 7 . Crush . | . . . Escape Stasis . | . . . Rewire . | . . . Trap . | . . . Miscellaneous . | . . . Route ------- -11/Scrapyard -10/Materials (discovered 4 exits: [*Mat x3] / [*Min]) -10/Mines History --------- Turn | Location | Event 3 | -11/Scrapyard | Discovered new exit (range 0) 3 | -11/Scrapyard | Entered Materials 263 | -10/Materials | Core integrity fell below 50% 310 | -10/Materials | Lost 3 parts (2n1w) 449 | -10/Materials | Discovered new exit (range 15) 517 | -10/Materials | Build established: Scavenger-Mutant 1151 | -10/Materials | Discovered new exit (range 13) 1488 | -10/Materials | Discovered new exit (range 16) 1776 | -10/Materials | Discovered new exit (range 6) 1864 | -10/Materials | Core integrity fell below 20% 2267 | -10/Materials | Entered Mines 2268 | -10/Mines | Learned location of Storage (-9) 2268 | -10/Mines | Assembled infested the area 2289 | -10/Mines | System corruption reached 10% 2291 | -10/Mines | Destroyed self with Grenade Launcher Last Messages --------------- 02279_ as-73522 destroyed. 02281_ The unstable cave ceiling collapses. 02283_ Ion Engine destroyed. 02283_ as-57691 destroyed. 02283_ as-39414 destroyed. [Achievement: Exterminator] 02283_ as-65936 destroyed. 02285_ Destroyed Asb. Hover Unit. 02285_ as-87231 destroyed. 02285_ Destroyed Asb. Hover Unit. 02285_ Aluminum Leg destroyed. 02285_ System corrupted by crushing effect (+5). 02286_ System corrupted: Heat flow error (+125). 02287_ The unstable cave ceiling collapses. 02287_ as-09058 destroyed. 02288_ Sml. Laser destroyed. 02288_ System corrupted by crushing effect (+5). 02289_ Lgt. Armor Plating destroyed. 02289_ as-65656 destroyed. 02291_ as-28380 destroyed. Map ----- +----------------------------------------------------+ | ?????????????????????????????????????????????????? | | ?????????????????????????????????????????????????? | | ?????????????????????????????????????????????????? | | ?????????????????????????????????????????????????? | | ?????????????????????????????????????????????????? | | ?????????????????????????????????????????????????? | | ?????????????????????????????????????????????????? | | ?????????????????????????????????????????????????? | | ?????????????????????????????????????????????????? | | ?????????????????????????????????????????????????? | | ??????????????????????? #????????????????????????? | | ????????????????????? ### #???????????????????? | | ???????????????????# #????????????????? | | ???????????????????? ?????????????????? | | ???????????????????? ?????????????????? | | ????????????????????? #?????????????????? | | ????????????????????? #?????????????????? | | ?????????????????????# #?????????????????? | | ?????????????????????? # #?????????????????? | | ?????????????????????? ??????????????????? | | ???????????????????#### ##?????????????????? | | ??????????????????## #?????????????????? | | ??????????????????# #??????????????????? | | ??????????????????# #??????????????????? | | ??????????????????# #??????????????????? | | ??????????????????# @ #????????????????????? | | ??????????????????## #????????????????????? | | ???????????????????#### # ###????????????????????? | | ??????????????????????#####??????????????????????? | | ?????????????????????????????????????????????????? | | ?????????????????????????????????????????????????? | | ?????????????????????????????????????????????????? | | ?????????????????????????????????????????????????? | | ?????????????????????????????????????????????????? | | ?????????????????????????????????????????????????? | | ?????????????????????????????????????????????????? | | ?????????????????????????????????????????????????? | | ?????????????????????????????????????????????????? | | ?????????????????????????????????????????????????? | | ?????????????????????????????????????????????????? | | | | | | | | | | | | | | | | | | | | | +----------------------------------------------------+ Best States ------------- Heat Dissipation 35 Energy Generation 10 Energy Capacity 250 Matter Stores 300 Matter Capacity 300 Sight Range 16 Terrain Scan Density 10 Armor Coverage 150 Evasion (%) 55 Item Schematics ----------------- None Robot Schematics ------------------ None Fabricated ------------ Nothing Alien Tech Used ----------------- None Achievements -------------- Exterminator Challenges ------------ None Game ------ Seed TiamatLegMonowheel Manual? 0 Play Time 00:06:33 Cumulative 258.3 hours Start 2024.06.05 @ 19:36:09 End 2024.06.05 @ 19:42:00 Sessions 1 Manual Loads 0 Difficulty Rogue Special Mode None Game No. 312 Rogue 312 Adventurer 0 Explorer 0 Win Type - Total 11 Types 5/1/2/1/1/0/0/1/0 Lore% 74 Gallery% 82 Achievement% 71 Wizard Run 0 Options --------- Layout 0 ASCII 0 Keyboard 0 Movement Numpad Keybinds 0 Fullscreen 1 Font 18/SmallcapsGlow Map View 76x50 Zoom Use 0% Tactical HUD 1 Map Filters NONE Filters NONE Steam 1 RUN: ab6c5901-664c-4dda-b854-73d52e024f20